fUST/lending_fUST_20250422
["ID","MTS","AMOUNT","RATE_DAILY","PERIOD"]
[358589061,1745292639594,-195.816658,0.00025734,7]
[358589062,1745292639603,-195.816658,0.00025734,7]
[358589063,1745292639613,-215.0738,0.00025853,2]
[358589064,1745292639623,-151.0,0.00025853,2]
[358589065,1745292639632,-152.29829603,0.00025878,2]
[358589066,1745292639642,-198.0,0.00025947,2]
[358589067,1745292639652,-500.0,0.00025947,2]
[358589068,1745292639662,-198.49227775,0.00025947,2]
[358589069,1745292639671,-151.0,0.00025947,2]
[358589070,1745292639681,-151.0,0.00025947,2]
[358589071,1745292639691,-250.81686347,0.00025947,2]
[358589072,1745292639700,-254.12404814,0.00025947,2]
[358589073,1745292639710,-208.13235835,0.00025947,2]
[358589074,1745292639719,-255.63165424,0.00025947,2]
[358589075,1745292639729,-605.70466546,0.00025947,2]
[358589076,1745292639738,-151.0,0.00025947,2]
[358589077,1745292639748,-198.0,0.00025947,2]
[358589078,1745292639758,-271.258,0.00025963,11]
[358589079,1745292639768,-178.488427,0.00025973,7]
[358589080,1745292639777,-178.488427,0.00025973,7]
[358589081,1745292639787,-151.0,0.00025973,7]
[358589082,1745292639796,-301.275818,0.00025973,7]
[358589083,1745292639805,-151.0,0.00025973,7]
[358589084,1745292639815,-151.0,0.00025973,7]
[358589086,1745292639825,-151.0,0.00025973,7]
[358589088,1745292639835,-316.536168,0.00025973,7]
[358589090,1745292639844,-316.536168,0.00025973,7]
[358589091,1745292639853,-1097.531955,0.00025973,7]
[358589092,1745292639862,-1097.531955,0.00025973,7]
[358589093,1745292639872,-151.0,0.00025973,2]
[358589094,1745292639881,-151.0,0.00025973,2]
[358589095,1745292639891,-167.043719,0.00025973,7]
[358589096,1745292639902,-167.043719,0.00025973,7]
[358589097,1745292639911,-292.155656,0.00025973,7]
[358589098,1745292639921,-151.0,0.00026,7]
[358589099,1745292639931,-151.0,0.00026,7]
[358589100,1745292639940,-222.255946,0.00026,7]
[358589101,1745292639949,-500.0,0.00026027,2]
[358589102,1745292639958,-160.0,0.00026126,2]
[358589103,1745292639967,-420.65680271,0.00026126,2]
[358589104,1745292639977,-159.146648,0.000262,5]
[358589105,1745292639986,-1003.281642,0.000262,2]
[358589106,1745292639995,-200.0,0.000262,2]
[358589107,1745292640006,-200.0,0.000262,2]
[358589108,1745292640015,-151.0,0.000262,7]
[358589109,1745292640024,-200.0,0.000264,2]
[358589110,1745292640033,-151.0,0.00026422,7]
[358589111,1745292640043,-151.0,0.00026422,7]
[358589112,1745292640052,-151.0,0.00026422,7]
[358589113,1745292640061,-151.0,0.00026422,7]
[358589114,1745292640071,-199.515242,0.00026422,7]
[358589115,1745292640080,-199.515242,0.00026422,7]
[358589116,1745292640089,-558.48675979,0.00026422,2]
[358589117,1745292640099,-500.0,0.00026495,2]
[358589118,1745292640108,-208.76002227,0.00026495,2]
[358589119,1745292640118,-204.01890757,0.00026495,2]
[358589120,1745292640127,-600.0,0.00026516,2]
[358589121,1745292640137,-420.0,0.00026525,2]
[358589122,1745292640146,-729.16666667,0.00026525,2]
[358589123,1745292640156,-1680.0,0.00026539,2]
[358589124,1745292640166,-318.622628,0.00026606,7]
[358589125,1745292640179,-318.622628,0.00026606,7]
[358589126,1745292640188,-178.488427,0.00026606,7]
[358589127,1745292640197,-178.488427,0.00026606,7]
[358589128,1745292640207,-500.0,0.00026688,2]
[358589129,1745292640217,-500.0,0.00026708,2]
[358589130,1745292640226,-500.0,0.00026708,2]
[358589131,1745292640236,-500.0,0.00026708,2]
[358589132,1745292640246,-500.0,0.00026708,2]
[358589133,1745292640256,-500.0,0.00026708,2]
[358589134,1745292640266,-500.0,0.00026708,2]
[358589135,1745292640276,-518.03923896,0.00026773,2]
[358589136,1745292640285,-500.72083253,0.00026773,2]
[358589137,1745292640295,-502.01648214,0.00026773,2]
[358589138,1745292640304,-500.0,0.00026773,2]
[358589139,1745292640313,-551.03692774,0.00026773,2]
[358589140,1745292640322,-500.0,0.00026773,2]
[358589141,1745292640331,-261.18303373,0.00026773,2]
[358589142,1745292640340,-500.0,0.00026773,2]
[358589143,1745292640350,-526.470825,0.00026773,7]
[358589144,1745292640361,-526.470825,0.00026773,7]
[358589145,1745292640370,-294.458733,0.0002679,7]
[358589146,1745292640380,-151.0,0.0002679,7]
[358589147,1745292640390,-151.0,0.0002679,7]
[358589148,1745292640399,-151.0,0.0002679,7]
[358589149,1745292640409,-151.0,0.0002679,7]
[358589150,1745292640419,-151.0,0.0002679,7]
[358589151,1745292640429,-151.0,0.0002679,7]
[358589152,1745292640438,-159.881835,0.0002679,7]
[358589153,1745292640448,-159.881835,0.0002679,7]
[358589154,1745292640457,-195.816658,0.0002679,7]
[358589155,1745292640467,-195.816658,0.0002679,7]
[358589156,1745292640477,-151.0,0.000268,7]
[358589157,1745292640487,-151.0,0.000268,7]
[358589158,1745292640497,-151.0,0.000268,7]
[358589159,1745292640507,-151.0,0.000268,7]
[358589160,1745292640516,-151.0,0.000268,7]
[358589161,1745292640525,-228.853004,0.000268,7]
[358589162,1745292640535,-228.853004,0.000268,7]
[358589163,1745292640544,-151.0,0.000268,7]
[358589164,1745292640554,-197.040389,0.000268,7]
[358589165,1745292640563,-197.040389,0.000268,7]
[358589166,1745292640572,-253.250277,0.000268,7]
[358589167,1745292640581,-177.352007,0.000268,7]
[358589168,1745292640591,-177.352007,0.000268,7]
[358589169,1745292640601,-159.299332,0.000268,7]
[358589170,1745292640610,-318.622628,0.000268,7]
[358589171,1745292640619,-318.622619,0.000268,7]
[358589172,1745292640629,-151.0,0.000268,7]
[358589173,1745292640639,-151.0,0.000268,7]
[358589174,1745292640649,-151.0,0.000268,7]
[358589175,1745292640659,-151.0,0.000268,7]
[358589176,1745292640668,-316.536168,0.000268,7]
[358589177,1745292640678,-316.536168,0.000268,7]
[358589178,1745292640687,-1097.531955,0.000268,7]
[358589179,1745292640697,-1097.531955,0.000268,7]
[358589180,1745292640708,-151.0,0.000268,2]
[358589181,1745292640718,-204.511236,0.000268,2]
[358589182,1745292640727,-167.043719,0.000268,7]
[358589183,1745292640737,-167.043719,0.000268,7]
[358589184,1745292640747,-84655.37231252,0.000268,4]
[358589185,1745292640795,-1299.0,0.000268,4]
[358589186,1745292640893,-4501.31570885,0.000268,4]
[358589187,1745292640959,-982.79729437,0.000268,4]
[358589194,1745292642899,-607.42752534,0.000245,2]
[358589195,1745292642909,-403.0,0.00025563,2]
[358589196,1745292642919,-607.42752533,0.000256,2]
[358589197,1745292642928,-239.583471,0.00025973,7]
[358589198,1745292642938,-151.0,0.000262,7]
[358589199,1745292642948,-607.42752533,0.000267,2]
[358589200,1745292642957,-4201.32219226,0.000268,4]
[358589201,1745292643000,-3526.0000005,0.000268,4]
[358589202,1745292643012,-2907.7865542,0.000268,4]
[358589206,1745292645730,-239.583471,0.00025973,7]
[358589207,1745292645740,-1254.0456896,0.000268,4]
[358589208,1745292645750,-239.583471,0.000268,7]
[358589209,1745292645760,-239.583471,0.000268,7]
[358589210,1745292645769,-259.015654,0.00026872,2]
[358589211,1745292645778,-500.0,0.000269,2]
[358589212,1745292645787,-312.898062,0.00027,3]
[358589213,1745292645797,-312.898062,0.00027,3]
[358589214,1745292645806,-305.20459096,0.00027043,2]
[358589215,1745292645816,-151.0,0.00027064,7]
[358589216,1745292645825,-178.488427,0.00027064,7]
[358589217,1745292645834,-120.01960633,0.00027064,7]
[358589219,1745292645846,-58.46881567,0.00027064,7]
[358589220,1745292645856,-151.0,0.00027064,7]
[358589221,1745292645865,-51.7693255,0.00027064,7]
[358589222,1745292645877,-474.7014995,0.00027064,7]
[358589223,1745292645887,-526.470825,0.00027064,7]
[358589224,1745292645896,-151.0,0.00027064,7]
[358589225,1745292645905,-151.0,0.00027064,7]
[358589226,1745292645915,-159.881835,0.00027064,7]
[358589227,1745292645924,-159.881835,0.00027064,7]
[358589228,1745292645933,-154.589974,0.00027064,7]
[358589229,1745292645942,-195.816658,0.00027064,7]
[358589230,1745292645952,-451.369295,0.00027064,7]
[358589231,1745292645961,-195.816658,0.00027064,7]
[358589232,1745292645970,-451.369295,0.00027064,7]
[358589233,1745292645979,-935.740452,0.00027064,2]
[358589234,1745292646073,-299.488326,0.00027064,7]
[358589235,1745292646086,-935.740452,0.00027064,2]
[358589236,1745292646096,-151.0,0.00027064,7]
[358589237,1745292646107,-299.488326,0.00027064,7]
[358589238,1745292646117,-191.411175,0.00027064,7]
[358589239,1745292646126,-191.411175,0.00027064,7]
[358589240,1745292646136,-151.0,0.00027064,7]
[358589241,1745292646146,-924.885668,0.00027064,7]
[358589242,1745292646155,-924.885668,0.00027064,7]
[358589243,1745292646165,-1916.494375,0.00027064,7]
[358589244,1745292646180,-1734.2477304,0.00027064,7]
[358589245,1745292646192,-182.2466446,0.00027064,7]
[358589246,1745292646202,-151.0,0.00027064,7]
[358589247,1745292646212,-420.73667954,0.00027064,7]
[358589248,1745292646223,-160.0,0.00027064,7]
[358589249,1745292646232,-231.457876,0.00027064,7]
[358589250,1745292646242,-231.457876,0.00027064,7]
[358589251,1745292646251,-151.0,0.00027064,7]
[358589252,1745292646261,-151.0,0.00027064,7]
[358589253,1745292646271,-151.0,0.00027064,7]
[358589254,1745292646289,-151.0,0.00027064,7]
[358589255,1745292646301,-199.515242,0.00027064,7]
[358589256,1745292646311,-199.515242,0.00027064,7]
[358589257,1745292646323,-151.0,0.00027064,7]
[358589258,1745292646334,-288.62622334,0.00027064,2]
[358589259,1745292646369,-1600.0,0.00027064,2]
[358589309,1745293831820,-194.26174,0.00023472,2]
[358589311,1745293831830,-86.25785394,0.00024298,2]
[358589358,1745293838007,-156.7131562,0.00024298,2]
[358589359,1745293838017,-1200.0,0.00024371,2]
[358589360,1745293838026,-300.0,0.00024372,2]
[358589361,1745293838035,-500.0,0.00024373,2]
[358589362,1745293838045,-500.0,0.00024373,2]
[358589363,1745293838054,-500.0,0.00024373,2]
[358589364,1745293838065,-500.0,0.00024373,2]
[358589365,1745293838074,-500.0,0.00024373,2]
[358589366,1745293838084,-500.0,0.00024373,2]
[358589367,1745293838094,-500.0,0.00024373,2]
[358589368,1745293838104,-500.0,0.00024373,2]
[358589369,1745293838114,-501.50458303,0.00024373,2]
[358589370,1745293838123,-500.30093475,0.00024373,2]
[358589371,1745293838224,-500.0,0.00024373,2]
[358589372,1745293838240,-500.0,0.00024373,2]
[358589373,1745293838249,-500.0,0.00024373,2]
[358589375,1745293838259,-506.22864744,0.00024373,2]
[358589378,1745293838269,-500.0,0.00024373,2]
[358589379,1745293838278,-500.0,0.00024373,2]
[358589380,1745293838290,-500.0,0.00024373,2]
[358589381,1745293838299,-500.0,0.00024373,2]
[358589383,1745293838308,-636.78831892,0.00024373,2]
[358589385,1745293838317,-255.78784769,0.00024373,2]
[358589387,1745293838327,-300.0,0.00024373,2]
[358589388,1745293838336,-500.0,0.00024373,2]
[358589389,1745293838345,-500.0,0.00024373,2]
[358589390,1745293838354,-500.0,0.00024373,2]
[358589391,1745293838364,-502.166531,0.00024373,2]
[358589392,1745293838373,-500.0,0.00024373,2]
[358589393,1745293838383,-500.0,0.00024373,2]
[358589394,1745293838391,-402.43625896,0.00024373,2]
[358589395,1745293838401,-500.0,0.00024373,2]
[358589396,1745293838410,-462.98824588,0.00024373,2]
[358589397,1745293838419,-500.0,0.00024373,2]
[358589398,1745293838428,-504.50660322,0.00024373,2]
[358589399,1745293838437,-500.0,0.00024373,2]
[358589400,1745293838446,-500.0,0.00024373,2]
[358589401,1745293838456,-500.0,0.00024373,2]
[358589402,1745293838465,-500.0,0.00024373,2]
[358589403,1745293838474,-500.0,0.00024373,2]
[358589404,1745293838483,-500.0,0.00024373,2]
[358589405,1745293838492,-502.55080343,0.00024373,2]
[358589406,1745293838501,-9124.27705071,0.00024373,2]
[358589407,1745293838511,-151.0,0.00024384,2]
[358589408,1745293838520,-207.4,0.00024384,2]
[358589409,1745293838529,-151.51901017,0.00024397,2]
[358589410,1745293838539,-151.0,0.00024397,2]
[358589411,1745293838551,-151.0,0.00024397,2]
[358589412,1745293838560,-154.69051424,0.00024397,2]
[358589413,1745293838570,-156.99040747,0.00024397,2]
[358589414,1745293838579,-151.0,0.00024397,2]
[358589415,1745293838590,-500.0,0.00024397,2]
[358589416,1745293838599,-440.59765912,0.00024397,2]
[358589417,1745293838608,-500.0,0.00024397,2]
[358589418,1745293838617,-500.0,0.00024397,2]
[358589419,1745293838626,-500.0,0.00024397,2]
[358589420,1745293838636,-301.15312547,0.00024397,2]
[358589421,1745293838646,-500.0,0.00024397,2]
[358589422,1745293838655,-500.0,0.00024397,2]
[358589423,1745293838664,-500.0,0.00024397,2]
[358589424,1745293838673,-500.0,0.00024397,2]
[358589425,1745293838683,-500.0,0.00024397,2]
[358589426,1745293838693,-500.0,0.00024397,2]
[358589427,1745293838702,-500.0,0.00024397,2]
[358589428,1745293838711,-500.0,0.00024397,2]
[358589429,1745293838720,-500.0,0.00024397,2]
[358589430,1745293838730,-500.0,0.00024397,2]
[358589431,1745293838739,-500.0,0.00024397,2]
[358589432,1745293838749,-500.0,0.00024397,2]
[358589433,1745293838758,-500.0,0.00024397,2]
[358589434,1745293838767,-500.0,0.00024397,2]
[358589435,1745293838777,-500.0,0.00024397,2]
[358589436,1745293838786,-500.0,0.00024397,2]
[358589437,1745293838795,-500.0,0.00024397,2]
[358589438,1745293838805,-500.0,0.00024397,2]
[358589439,1745293838815,-500.0,0.00024397,2]
[358589440,1745293838824,-500.0,0.00024397,2]
[358589441,1745293838833,-237.65885098,0.00024397,2]
[358589442,1745293838842,-500.0,0.00024397,2]
[358589443,1745293838852,-500.0,0.00024397,2]
[358589444,1745293838861,-500.0,0.00024397,2]
[358589445,1745293838871,-500.0,0.00024397,2]
[358589446,1745293838880,-500.0,0.00024397,2]
[358589447,1745293838889,-500.0,0.00024397,2]
[358589448,1745293838898,-370000.0,0.00024398,2]
[358589449,1745293838908,-500.0,0.00024398,2]
[358589450,1745293838917,-884.07379441,0.000247,2]
[358589451,1745293838926,-242.97101013,0.00024735,2]
[358589452,1745293838936,-1524.06619891,0.00024862,2]
[358589453,1745293838945,-151.0,0.00024862,2]
[358589454,1745293838955,-500.0,0.00024862,2]
[358589455,1745293838964,-151.0,0.00024862,2]
[358589456,1745293838973,-166.79409285,0.00024862,2]
[358589457,1745293838982,-192.19065671,0.00024862,2]
[358589458,1745293838992,-160.51690341,0.00024862,2]
[358589459,1745293839002,-1524.06619891,0.00024872,2]
[358589460,1745293839011,-171.49124892,0.00024873,2]
[358589461,1745293839020,-551.03692774,0.00024873,2]
[358589462,1745293839029,-501.08348134,0.00024873,2]
[358589463,1745293839039,-299.75961907,0.00024873,2]
[358589464,1745293839048,-261.18303373,0.00024873,2]
[358589465,1745293839058,-500.0,0.00024873,2]
[358589466,1745293839067,-500.0,0.00024873,2]
[358589467,1745293839076,-500.0,0.00024873,2]
[358589468,1745293839085,-500.0,0.00024873,2]
[358589469,1745293839095,-500.0,0.00024873,2]
[358589470,1745293839105,-500.0,0.00024873,2]
[358589471,1745293839114,-500.0,0.00024873,2]
[358589472,1745293839123,-500.0,0.00024873,2]
[358589473,1745293839132,-500.0,0.00024873,2]
[358589474,1745293839142,-500.0,0.00024873,2]
[358589475,1745293839151,-500.0,0.00024873,2]
[358589476,1745293839161,-1524.06619891,0.00024884,2]
[358589477,1745293839171,-1524.06619891,0.00024887,2]
[358589478,1745293839181,-152946.20157778,0.000249,2]
[358589483,1745293840437,-1178.59441865,0.000249,2]
[358589492,1745293846053,-40240.19647357,0.000249,2]
[358589493,1745293846063,-280.66937517,0.00024943,2]
[358589494,1745293846073,-160.0,0.00024943,2]
[358589495,1745293846083,-160.0,0.00024943,2]
[358589496,1745293846092,-160.0,0.00024943,2]
[358589497,1745293846101,-729.16666667,0.00024943,2]
[358589498,1745293846110,-420.73667954,0.00024943,2]
[358589499,1745293846120,-160.0,0.00024943,2]
[358589500,1745293846129,-292.21974269,0.00024945,2]
[358589501,1745293846138,-151.0,0.00024945,2]
[358589502,1745293846148,-1500.35933279,0.00025,2]
[358589503,1745293846157,-152.0,0.00025077,3]
[358589504,1745293846166,-202.0,0.00025077,3]
[358589505,1745293846176,-152.0,0.00025077,3]
[358589506,1745293846185,-202.07870868,0.00025077,3]
[358589507,1745293846194,-152.0,0.00025077,3]
[358589508,1745293846204,-169.0,0.00025077,3]
[358589509,1745293846213,-152.0,0.00025077,3]
[358589510,1745293846222,-170.30492162,0.00025077,3]
[358589511,1745293846231,-152.0,0.00025077,3]
[358589512,1745293846241,-265.87841741,0.00025077,3]
[358589513,1745293846250,-359.0,0.00025077,3]
[358589514,1745293846259,-359.0,0.00025077,3]
[358589515,1745293846268,-319.0,0.00025077,3]
[358589516,1745293846277,-319.0,0.00025077,3]
[358589517,1745293846286,-359.0,0.00025077,3]
[358589518,1745293846295,-319.0,0.00025077,3]
[358589519,1745293846305,-321.30758549,0.00025077,3]
[358589544,1745294244662,306.76664392,0.0001951,2]
[358589545,1745294244892,306.76664392,0.00019974,2]
[358589548,1745294308446,8726.336567,0.00023,31]
[358589551,1745294379182,185.816168,0.00025,120]
[358589560,1745294766516,307.6080903,0.00017045,2]
[358589561,1745294766823,307.6080903,0.0001727,2]
[358589562,1745294767167,307.6080903,0.0001754,2]
[358589563,1745294767490,307.6080903,0.00017946,2]
[358589564,1745294768182,307.6080903,0.00018334,2]
[358589565,1745294768590,307.6080903,0.00018521,2]
[358589566,1745294768871,307.6080903,0.00018839,2]
[358589567,1745294769694,307.6080903,0.00018979,2]
[358589568,1745294770018,307.6080903,0.00019397,2]
[358589569,1745294770507,307.6080903,0.00019706,2]
[358589570,1745294770818,307.6080903,0.00019926,2]
[358589571,1745294786137,155.84098564,0.00019942,2]
[358589612,1745295032024,-1005.08432821,0.000209,2]
[358589615,1745295032035,-335.3980576,0.00021484,2]
[358589617,1745295032044,-308.56427937,0.0002157,2]
[358589618,1745295032054,-235.4190737,0.00021733,2]
[358589621,1745295032063,-308.56427937,0.00021796,2]
[358589623,1745295032073,-308.56427937,0.00022089,2]
[358589625,1745295032083,-308.56427937,0.00022448,2]
[358589635,1745295032186,-194.26174,0.00022506,2]
[358589636,1745295032196,-308.56427937,0.0002259,2]
[358589637,1745295032205,-308.56427937,0.00022863,2]
[358589638,1745295032215,-1200.0,0.00023034,2]
[358589639,1745295032225,-308.56427937,0.00023115,2]
[358589640,1745295032235,-151.0,0.00023293,2]
[358589641,1745295032245,-300.0,0.00023306,2]
[358589642,1745295032256,-300.0,0.00023306,2]
[358589643,1745295032265,-829.16118613,0.00023307,2]
[358589644,1745295032277,-22325.95040457,0.00023307,2]
[358589645,1745295032287,-500.0,0.00023373,2]
[358589646,1745295032297,-500.30093475,0.00023373,2]
[358589647,1745295032307,-286.89695262,0.00023373,2]
[358589674,1745295038184,-1954.64171099,0.00023273,2]
[358589676,1745295038193,-86.47450601,0.00023373,2]
[358589678,1745295038203,-501.50458303,0.00023373,2]
[358589680,1745295038212,-500.0,0.00023373,2]
[358589682,1745295038221,-500.0,0.00023373,2]
[358589684,1745295038231,-510.47360318,0.00023373,2]
[358589686,1745295038240,-500.0,0.00023373,2]
[358589688,1745295038250,-500.0,0.00023373,2]
[358589690,1745295038259,-254.61317008,0.00023373,2]
[358589694,1745295038272,-89.29419478,0.00023373,2]
[358589696,1745295038281,-188.96120344,0.00023373,2]
[358589698,1745295038293,-311.03879656,0.00023373,2]
[358589700,1745295038302,-188.96120344,0.00023373,2]
[358590437,1745295046023,-311.03879656,0.00023373,2]
[358590439,1745295046033,-501.84554274,0.00023373,2]
[358590441,1745295046042,-500.0,0.00023373,2]
[358590443,1745295046051,-500.0,0.00023373,2]
[358590445,1745295046060,-508.56054553,0.00023373,2]
[358590447,1745295046070,-197.93484027,0.00023373,2]
[358590454,1745295046128,-302.06515973,0.00023373,2]
[358590457,1745295046138,-500.0,0.00023373,2]
[358590459,1745295046148,-500.0,0.00023373,2]
[358590461,1745295046157,-300.0,0.00023373,2]
[358590463,1745295046166,-308.56427937,0.00023497,2]
[358590465,1745295046176,-308.56427937,0.00023748,2]
[358590467,1745295046187,-509.62931601,0.00024,2]
[358590469,1745295046196,-308.56427937,0.00024048,2]
[358590471,1745295046205,-1486.041623,0.00024156,2]
[358590473,1745295046214,-308.56427937,0.00024197,2]
[358590475,1745295046223,-500.0,0.0002425,2]
[358590477,1745295046233,-608.07458378,0.0002425,2]
[358590479,1745295046242,-500.0,0.00024267,2]
[358590481,1745295046251,-308.56427937,0.00024411,2]
[358590483,1745295046261,-151.0,0.00024662,2]
[358590485,1745295046271,-2889.0,0.00024767,2]
[358590487,1745295046279,-2889.0,0.00024767,2]
[358590489,1745295046289,-2889.0,0.00024767,2]
[358590491,1745295046298,-207.4,0.00024771,2]
[358590493,1745295046307,-308.56427937,0.00024866,2]
[358590495,1745295046317,-3000.0,0.00025,3]
[358590497,1745295046328,-158.52940338,0.00025001,120]
[358590499,1745295046337,-160.0,0.00025002,2]
[358590501,1745295046346,-600.0,0.00025016,2]
[358590503,1745295046356,-403.0,0.00025066,2]
[358590505,1745295046365,-220.52915572,0.00025099,3]
[358590507,1745295046374,-319.0,0.00025099,3]
[358590509,1745295046384,-319.27300255,0.00025099,3]
[358590511,1745295046393,-319.0,0.00025099,3]
[358590513,1745295046402,-319.0,0.00025099,3]
[358590515,1745295046411,-319.0,0.00025099,3]
[358590517,1745295046420,-1680.0,0.0002512,2]
[358590519,1745295046429,-500.0,0.00025205,2]
[358590521,1745295046438,-200.0,0.00025248,7]
[358590523,1745295046448,-420.0,0.00025292,2]
[358590525,1745295046456,-304.0,0.00025292,2]
[358590526,1745295046466,-160.0,0.00025352,2]
[358590528,1745295046474,-160.0,0.00025352,2]
[358590530,1745295046483,-420.73667954,0.00025352,2]
[358590532,1745295046493,-729.16666667,0.00025355,2]
[358590534,1745295046503,-308.56427937,0.00025381,2]
[358590537,1745295046513,-200.0,0.000254,2]
[358590539,1745295046523,-251.466,0.0002567,2]
[358590541,1745295046532,-150.411,0.0002567,2]
[358590542,1745295046542,-150.7,0.0002567,2]
[358590544,1745295046551,-155.248,0.0002567,2]
[358590545,1745295046562,-246.67,0.0002567,2]
[358590547,1745295046571,-256.251,0.0002567,2]
[358590548,1745295046581,-172.528,0.0002567,2]
[358590549,1745295046591,-151.209,0.0002567,2]
[358590550,1745295046600,-545.181,0.0002567,2]
[358590551,1745295046610,-708.0,0.0002567,2]
[358590552,1745295046619,-2279.465,0.0002567,2]
[358590553,1745295046628,-151.0,0.0002567,2]
[358590554,1745295046638,-151.0,0.0002567,2]
[358590555,1745295046647,-500.0,0.0002567,2]
[358590556,1745295046656,-151.0,0.0002567,2]
[358590557,1745295046666,-151.0,0.0002567,2]
[358590558,1745295046675,-500.0,0.0002567,2]
[358590559,1745295046685,-151.0,0.0002567,2]
[358590560,1745295046694,-151.0,0.0002567,2]
[358590562,1745295046704,-308.56427937,0.00025692,2]
[358590572,1745295046786,-949.2909847,0.0002571,4]
[358590574,1745295046795,-308.56427937,0.00025794,2]
[358590576,1745295046805,-271.258,0.00025844,11]
[358590578,1745295046814,-216.75657,0.000259,30]
[358590580,1745295046823,-1005.08432821,0.000259,2]
[358590582,1745295046832,-270.51594876,0.00025957,2]
[358590585,1745295046842,-270.51594874,0.00025982,2]
[358590587,1745295046851,-65858.26409577,0.00025998,2]
[358593393,1745296238515,-780.5083329,0.00021999,2]
[358593400,1745296240718,-419.4916671,0.00021999,2]
[358593401,1745296240727,-213.6083329,0.00022,7]
[358593402,1745296240739,-420.87043536,0.00022,7]
[358593403,1745296240774,-272.79324484,0.00022,7]
[358593405,1745296243265,467.24968363,0.000199,2]
[358593406,1745296243405,-773.83,0.00022,7]
[358593407,1745296243417,-1991.785481,0.00022,7]
[358593421,1745296246275,-2227.59279292,0.00022,7]
[358593444,1745296544659,311.49978909,0.000199,2]
[358593449,1745296845924,502.35779086,0.000199,2]
[358593451,1745296889077,311.38677236,0.00019721,2]
[358593452,1745296889373,311.38677236,0.000199,2]
[358593464,1745297147098,334.90519391,0.000189,2]
[358593465,1745297162949,7533.0,0.0002,30]
[358593487,1745297432325,-311.38677236,0.00020121,2]
[358593488,1745297432336,-311.38677236,0.00020353,2]
[358593489,1745297432347,-160.31031112,0.00020604,2]
[358593490,1745297432357,-311.38677236,0.00020704,2]
[358593491,1745297432367,-311.38677236,0.00020881,2]
[358593492,1745297432376,-152.68707532,0.0002092,2]
[358593493,1745297432386,-347.48129324,0.00021021,2]
[358593495,1745297432690,-555.08684216,0.00021021,2]
[358593496,1745297432703,-311.38677236,0.0002131,2]
[358593497,1745297432714,-160.3103111,0.00021323,2]
[358593498,1745297432723,-276.8029529,0.00021338,2]
[358593499,1745297432733,-311.38677236,0.00021506,2]
[358593500,1745297432743,-311.3867724,0.0002178,2]
[358593501,1745297432753,-250.0,0.000218,2]
[358593502,1745297432763,-152.68707532,0.00021843,2]
[358593503,1745297432772,-238.16302189,0.000219,2]
[358593504,1745297432781,-194.26174,0.00021918,2]
[358593505,1745297432792,-239.89770754,0.00022,7]
[358593506,1745297432801,-160.3103111,0.00022042,2]
[358593507,1745297432810,-160.3103111,0.00022761,2]
[358593508,1745297432820,-1200.0,0.00022764,2]
[358593509,1745297432829,-152.68707532,0.00022765,2]
[358593510,1745297432838,-298.34680833,0.00022765,2]
[358593511,1745297432847,-276.68716555,0.00022772,2]
[358593512,1745297432857,-151.0,0.00022852,2]
[358593513,1745297432867,-300.0,0.0002286,2]
[358593514,1745297432876,-3388.77644604,0.00022861,2]
[358593555,1745297438447,-500.0,0.0002286,2]